bitfinex-derivatives/quotes_ETHF0:USTF0_20251210
["timestamp","ask_amount","ask_price","bid_price","bid_amount"]
[1765365781273,3.35706582,3316.8,3316.7,0.00452202]
[1765365781775,4.55605153,3316.8,3316.7,0.00676364]
[1765365782363,3.82827142,3316.8,3316.7,0.00676364]
[1765365782778,4.55212078,3316.8,3316.7,0.00676364]
[1765365783272,3.82827142,3316.8,3316.7,0.00676364]
[1765365783579,2.62928571,3316.8,3316.7,0.74636364]
[1765365783770,1.92148571,3316.8,3316.7,1.46916364]
[1765365783977,2.62928571,3316.8,3316.7,0.00676364]
[1765365785380,1.4303,3316.8,3316.7,0.00676364]
[1765365785677,2.62928571,3316.8,3316.7,0.00676364]
[1765365788778,3.82827142,3316.8,3316.7,0.00676364]
[1765365788973,1.4303,3316.1,3316.0,0.4447]
[1765365789284,2.62928571,3316.1,3316.0,1.1843]
[1765365789579,2.62928571,3316.1,3316.0,1.9071]
[1765365789981,2.63286944,3316.1,3316.0,1.91033795]
[1765365791483,0.00358373,3316.1,3316.0,1.91033795]
[1765365797079,1.92208571,3316.8,3316.7,1.4475]
[1765365797384,2.60788571,3316.8,3316.7,0.7103]
[1765365797578,2.60788571,3316.8,3316.7,1.4475]
[1765365798085,2.61163631,3316.8,3316.7,1.4475]
[1765365798287,1.92583631,3316.8,3316.7,1.4475]
[1765365798481,2.61163631,3316.8,3316.7,1.4475]
[1765365799685,1.92583631,3316.8,3316.7,1.4475]
[1765365799988,2.61163631,3316.8,3316.7,1.4475]
[1765365801985,1.4089,3316.6,3316.5,1.8643]
[1765365802288,0.7231,3316.1,3316.0,1.89543795]
[1765365802687,1.4089,3316.1,3316.0,1.89543795]
[1765365802886,0.7231,3316.1,3316.0,1.89543795]
[1765365806194,1.89478571,3316.2,3316.1,1.3965]
[1765365806391,2.91902816,3316.2,3316.1,1.3965]
[1765365806592,3.63512816,3316.2,3316.1,1.3965]
[1765365808495,3.63534948,3316.2,3316.1,1.3965]
[1765365810088,3.63534948,3316.2,3316.1,0.6955]
[1765365810492,3.63534948,3316.2,3316.1,1.3965]
[1765365810688,3.63534948,3316.2,3316.1,0.6955]
[1765365810992,3.63534948,3316.2,3316.1,1.3965]
[1765365811596,3.63534948,3316.2,3316.1,0.6955]
[1765365811997,1.4119,3316.1,3316.0,0.00323795]
[1765365812299,4.05158004,3316.1,3316.0,0.00323795]
[1765365813194,3.75477629,3316.1,3316.0,0.00323795]
[1765365813398,4.05149078,3316.1,3316.0,0.00323795]
[1765365814490,5.25047649,3316.1,3316.0,0.00323795]
[1765365814895,1.4119,3315.8,3315.7,0.00452202]
[1765365815099,1.89478571,3315.1,3315.0,1.8412]
[1765365815400,1.42346002,3315.1,3315.0,1.8412]
[1765365815895,0.72766002,3315.1,3315.0,1.84346589]
[1765365816094,0.72766002,3315.1,3315.0,0.44696589]
[1765365816296,0.00452202,3315.4,3315.3,1.3965]
[1765365816297,0.70032202,3315.4,3315.3,1.3965]
[1765365816503,1.42738175,3315.4,3315.3,1.3965]
[1765365817194,0.73158175,3315.4,3315.3,1.3965]
[1765365817599,2.14348175,3315.4,3315.3,1.3965]
[1765365818202,1.42738175,3315.4,3315.3,1.3965]
[1765365819202,0.73158175,3315.4,3315.3,1.3965]
[1765365819398,0.00452202,3315.4,3315.3,1.3965]
[1765365819697,0.70032202,3315.4,3315.3,1.3965]
[1765365820003,0.73158175,3315.4,3315.3,1.3965]
[1765365820203,0.00452202,3315.4,3315.3,1.3965]
[1765365820399,1.41642202,3315.4,3315.3,0.6955]
[1765365820596,0.73158175,3315.4,3315.3,1.3965]
[1765365820903,0.00452202,3315.4,3315.3,1.3965]
[1765365821804,0.70032202,3315.4,3315.3,1.3965]
[1765365822006,1.42738175,3315.4,3315.3,1.3965]
[1765365823001,0.73158175,3315.4,3315.3,1.3965]
[1765365823307,0.00452202,3315.4,3315.3,1.3965]
[1765365827207,1.0216401,3316.2,3316.1,1.3965]
[1765365827208,0.72548297,3316.2,3316.1,1.3965]
[1765365827395,1.4156506,3316.8,3316.7,1.3965]
[1765365827704,3.63651656,3316.8,3316.7,0.6955]
[1765365827906,1.4119,3316.6,3316.5,1.8209]
[1765365828101,2.1375483,3316.6,3316.5,1.8209]
[1765365830108,0.7256483,3316.6,3316.5,1.8209]
[1765365830310,1.89853631,3316.8,3316.7,1.3965]
[1765365830509,1.72031316,3316.8,3316.7,1.3965]
[1765365831001,3.63539887,3316.8,3316.7,1.3965]
[1765365831809,2.62306366,3316.8,3316.7,1.3965]
[1765365832008,1.42407795,3316.8,3316.7,1.3965]
[1765365836419,2.14937795,3316.8,3316.7,1.3965]
[1765365838017,1.42407795,3316.8,3316.7,1.3965]
[1765365838216,0.6995506,3316.8,3316.7,1.3965]
[1765365838719,1.4405506,3316.8,3316.7,1.3965]
[1765365839112,0.6995506,3316.8,3316.7,1.3965]
[1765365839314,0.0037506,3316.8,3316.7,1.3965]
[1765365840014,0.7312506,3316.8,3316.7,1.3965]
[1765365840417,1.4722506,3316.8,3316.7,1.3965]
[1765365840720,0.0037506,3316.8,3316.7,1.3965]
[1765365842516,0.7312506,3316.8,3316.7,1.3965]
[1765365842818,0.0037506,3316.8,3316.7,1.3965]
[1765365843921,0.17339693,3317.0,3316.9,1.4112]
[1765365844816,0.17649829,3317.0,3316.9,1.4112]
[1765365845819,1.44561287,3318.0,3317.9,1.4112]
[1765365846022,2.18661287,3318.0,3317.9,1.4112]
[1765365846322,1.4685,3318.0,3317.9,1.4112]
[1765365846716,1.47074355,3318.0,3317.9,1.41442438]
[1765365846925,2.18861388,3318.0,3317.9,0.00322438]
[1765365849025,1.47074355,3318.0,3317.9,1.41442438]
[1765365849411,0.00224355,3318.0,3317.9,1.41442438]
[1765365853427,1.44504355,3318.0,3317.9,1.46602438]
[1765365853626,0.72974355,3318.0,3317.9,1.46602438]
[1765365853924,1.44504355,3318.0,3317.9,1.46602438]
[1765365854833,0.72974355,3318.0,3317.9,1.46602438]
[1765365855124,0.00224355,3318.0,3317.9,1.46602438]
[1765365862731,1.40494355,3318.0,3317.9,1.46602438]
[1765365863229,0.68964355,3318.0,3317.9,1.46602438]
[1765365864526,1.39584355,3318.0,3317.9,1.46602438]
[1765365864831,1.39584355,3318.0,3317.9,1.46492438]
[1765365865227,0.68964355,3318.0,3317.9,1.46492438]
[1765365867218,0.00224355,3318.0,3317.9,1.46492438]
[1765365867432,0.67614355,3318.0,3317.9,1.46492438]
[1765365868622,1.39564318,3318.0,3317.9,1.46492438]
[1765365870931,0.72174318,3318.0,3317.9,1.46492438]
[1765365871128,0.00224355,3318.0,3317.9,1.46492438]
[1765365877739,0.29661468,3318.6,3318.5,1.8009]
[1765365877932,0.97051468,3318.6,3318.5,1.8009]
[1765365878137,1.69001431,3318.6,3318.5,1.8009]
[1765365878437,2.39621431,3318.6,3318.5,1.8009]
[1765365878635,2.39835972,3318.6,3318.5,1.8009]
[1765365878833,1.69215972,3318.6,3318.5,1.8009]
[1765365879630,1.01825972,3318.6,3318.5,1.8009]
[1765365879832,0.29876009,3318.6,3318.5,1.8009]
[1765365880038,0.00214541,3318.6,3318.5,1.8009]
[1765365880431,4.541e-05,3318.6,3318.5,1.8009]
[1765365881231,4.541e-05,3318.6,3318.5,0.4104]
[1765365882934,4.541e-05,3318.6,3318.5,1.8009]
[1765365883139,4.541e-05,3318.6,3318.5,0.4104]
[1765365883634,1.38014541,3318.6,3318.5,0.4104]
[1765365883838,2.09964504,3318.6,3318.5,1.8009]
[1765365884233,1.39344504,3318.6,3318.5,1.8009]
[1765365884732,2.09964504,3318.6,3318.5,1.8009]
[1765365885239,1.39344504,3318.6,3318.5,1.8009]
[1765365885634,2.09964504,3318.6,3318.5,1.8009]
[1765365885830,1.39344504,3318.6,3318.5,1.8009]
[1765365887038,2.09964504,3318.6,3318.5,0.4104]
[1765365887944,2.09964504,3318.6,3318.5,1.0812]
[1765365888541,2.09964504,3318.6,3318.5,1.8009]
[1765365888740,2.09964504,3318.6,3318.5,1.0812]
[1765365889238,2.09964504,3318.6,3318.5,0.4104]
[1765365890242,2.09964504,3318.6,3318.5,1.8009]
[1765365890444,1.39344504,3318.6,3318.5,1.8009]
[1765365890641,0.71954504,3318.6,3318.5,1.8009]
[1765365891345,4.541e-05,3318.6,3318.5,1.1301]
[1765365891544,4.541e-05,3318.6,3318.5,0.4104]
[1765365892040,1.39344504,3318.6,3318.5,1.8009]
[1765365893645,2.09964504,3318.6,3318.5,1.8009]
[1765365900755,1.39344504,3318.6,3318.5,1.8009]
[1765365901054,2.09694504,3318.6,3318.5,1.8009]
[1765365901848,1.39344504,3318.6,3318.5,1.8009]
[1765365902049,0.71954504,3318.6,3318.5,1.8009]
[1765365902249,0.69694541,3318.6,3318.5,1.8341]
[1765365902457,1.41644504,3318.6,3318.5,1.8341]
[1765365903449,2.4175021,3318.6,3318.5,1.8341]
[1765365903650,2.4175021,3318.6,3318.2,0.00452202]
[1765365903651,1.4004,3318.3,3318.2,1.42822202]
[1765365905359,3.61810679,3318.3,3318.2,0.00452202]
[1765365905953,1.4004,3317.6,3317.5,1.8655]
[1765365906252,1.89626529,3317.6,3317.5,1.8655]
[1765365907157,2.59976529,3317.9,3317.8,1.4237]
[1765365907362,3.61723227,3317.9,3317.8,1.4237]
[1765365908066,2.91373227,3317.9,3317.8,1.4237]
[1765365908363,3.61723227,3317.9,3317.8,1.4237]
[1765365908565,2.41786698,3317.9,3317.8,1.4237]
[1765365908768,3.61723227,3317.9,3317.8,1.4237]
[1765365909266,3.61723227,3317.9,3317.5,1.8685077]
[1765365909267,0.6969,3317.6,3317.5,1.8685077]
[1765365909964,2.59976529,3317.6,3317.5,0.4448077]
[1765365910465,2.59976529,3317.6,3317.5,1.1598077]
[1765365910967,2.59976529,3317.6,3317.5,1.8685077]
[1765365912867,3.31919377,3317.6,3317.5,0.0030077]
[1765365913067,3.61619166,3317.6,3317.5,0.0030077]
[1765365916470,3.31919377,3317.6,3317.5,0.0030077]
[1765365916668,3.61555399,3317.6,3317.5,0.0030077]
[1765365920865,1.19936529,3317.9,3317.5,1.8467077]
[1765365921175,1.4308,3317.9,3317.8,0.6855]
[1765365921367,1.4308,3317.6,3317.5,1.8467077]
[1765365921774,2.63016529,3317.6,3317.5,1.8467077]
[1765365922167,1.19936529,3317.6,3317.5,1.8467077]
[1765365922673,1.92276529,3317.6,3317.5,1.8467077]
[1765365923372,2.63016529,3317.6,3317.5,1.8467077]
[1765365927869,1.92276529,3317.6,3317.5,1.8467077]
[1765365928478,2.66286529,3317.6,3317.5,1.8467077]
[1765365932186,3.38283804,3317.6,3317.5,1.8467077]
[1765365933489,3.38283804,3317.6,3317.5,1.1325077]
[1765365933684,3.38283804,3317.6,3317.5,1.8148077]
[1765365933892,3.38283804,3317.6,3317.5,1.1325077]
[1765365934088,3.38283804,3317.6,3317.5,1.8148077]
[1765365935186,3.68043138,3317.6,3317.5,1.8148077]
[1765365935487,1.01756609,3317.6,3317.5,1.8148077]
[1765365935683,0.71997275,3317.6,3317.5,3.01417299]
[1765365935890,0.6727,3318.5,3318.4,1.3662]
[1765365936082,1.3940849,3318.5,3318.4,1.3662]
[1765365936389,1.69174633,3318.5,3318.4,1.3662]
[1765365936590,1.01904633,3318.5,3318.4,1.3662]
[1765365936789,0.7213849,3318.5,3318.4,1.3662]
[1765365937090,4.541e-05,3318.6,3318.5,0.4399]
[1765365937289,4.541e-05,3318.6,3318.5,1.8061]
[1765365937290,1.01465236,3318.6,3318.5,1.8061]
[1765365937786,1.0146532,3318.6,3318.5,1.8061]
[1765365937980,2.4274532,3318.6,3318.5,1.8061]
[1765365938583,1.6873532,3318.6,3318.5,1.8061]
[1765365939189,0.71725065,3318.6,3318.5,1.8061]
[1765365939690,1.38995065,3318.6,3318.5,1.8061]
[1765365940482,2.13005065,3318.6,3318.5,1.8061]
[1765365942192,1.41284541,3318.6,3318.5,1.8061]
[1765365942386,0.67274541,3318.6,3318.5,1.8061]
[1765365942784,4.541e-05,3318.6,3318.5,0.4399]
[1765365952992,1.19936529,3319.6,3319.0,1.8575]
[1765365953197,2.63746529,3319.6,3319.5,1.8575]
[1765365953398,3.65062806,3319.6,3319.5,1.8575]
[1765365953595,3.65062806,3319.6,3319.5,1.138]
[1765365953898,3.65062806,3319.6,3319.5,0.4283]
[1765365954099,1.4381,3319.3,3319.2,1.43372202]
[1765365954299,2.63746529,3319.3,3319.2,1.43372202]
[1765365956404,1.90976529,3319.3,3319.2,1.43372202]
[1765365956703,0.7104,3319.3,3319.2,1.43372202]
[1765365957604,1.4381,3319.3,3319.2,1.43372202]
[1765365960399,0.7104,3319.3,3319.2,1.43372202]
[1765365960600,2.6391815,3319.6,3319.5,1.8575]
[1765365960899,3.65052262,3319.6,3319.5,1.8575]
[1765365961298,3.65052262,3319.6,3319.5,0.4283]
[1765365961499,1.4381,3319.3,3319.2,0.00452202]
[1765365962300,2.15214449,3319.3,3319.2,0.00452202]
[1765365962500,2.15214449,3319.3,3319.2,0.71422202]
[1765365963001,2.15214449,3319.3,3319.2,1.43372202]
[1765365964604,2.15214449,3319.3,3319.2,0.71422202]
[1765365965209,2.45012483,3319.3,3319.2,0.71422202]
[1765365965908,2.45012483,3319.3,3319.2,1.43372202]
[1765365966707,2.45019751,3319.3,3319.2,1.43372202]
[1765365966908,1.72249751,3319.3,3319.2,1.43372202]
[1765365967808,2.45019751,3319.3,3319.2,1.43372202]
[1765365968703,1.01209751,3319.3,3319.2,1.43372202]
[1765365969105,0.29805302,3319.3,3319.2,1.43372202]
[1765365969311,1.00845302,3319.4,3319.3,1.4292]
[1765365969613,1.01209751,3319.4,3319.3,1.4292]
[1765365969812,0.29805302,3319.4,3319.3,1.4292]
[1765365970014,1.44037161,3319.6,3319.5,1.8575]
[1765365970309,1.72476912,3319.6,3319.5,1.8575]
[1765365970811,2.45246912,3319.6,3319.5,1.8575]
[1765365974721,1.72476912,3319.6,3319.5,1.8575]
[1765365975922,2.40266912,3319.6,3319.5,1.8575]
[1765365977723,2.40393641,3319.6,3319.5,1.8575]
[1765365979521,1.72603641,3319.6,3319.5,1.8575]
[1765365980928,0.7163161,3319.6,3319.5,1.8575]
[1765365981624,0.00227161,3319.6,3319.5,1.8575]
[1765365986635,1.43527161,3319.6,3319.5,1.8575]
[1765365986833,2.1493161,3319.6,3319.5,1.8575]
[1765365987431,2.1493161,3319.6,3319.5,0.4283]
[1765365987739,2.44846057,3319.6,3319.5,0.4283]
[1765365988130,1.4203,3319.3,3319.2,1.44842202]
[1765365988432,2.13558241,3319.3,3319.2,1.44842202]
[1765365990737,2.13558241,3319.3,3319.2,0.00452202]
[1765365990938,2.13558241,3319.3,3319.2,0.71642202]
[1765365991433,2.13558241,3319.3,3319.2,1.44842202]
[1765365993732,2.13558241,3319.3,3319.2,0.00452202]
[1765365994433,2.43483706,3319.3,3319.2,0.00452202]
[1765365994740,1.4203,3318.6,3318.5,1.8838]
[1765365994938,0.6993,3318.6,3318.5,1.8838]
[1765365995539,1.4203,3318.6,3318.5,1.8838]
[1765365996041,1.4203,3318.6,3318.5,1.1518]
[1765365996843,1.4203,3318.6,3318.5,1.8838]
[1765366005252,0.6993,3318.6,3318.5,1.8838]
[1765366008351,1.4203,3318.6,3318.5,1.8838]
[1765366008755,0.6993,3318.6,3318.5,1.8838]
[1765366010550,1.4203,3318.3,3318.2,0.00452202]
[1765366010744,2.61910989,3318.3,3318.2,0.00452202]
[1765366010948,3.33301484,3318.3,3318.2,0.00452202]
[1765366017656,3.33301484,3318.3,3318.2,0.68592202]
[1765366017956,3.33301484,3318.3,3318.2,0.00452202]
[1765366018753,3.33400051,3318.3,3318.2,0.00452202]
[1765366019557,3.33400051,3318.3,3318.2,0.68592202]
[1765366019961,3.33400051,3318.3,3318.2,0.00452202]
[1765366020258,3.33400051,3318.3,3318.2,0.68592202]
[1765366020461,3.33610042,3318.3,3318.2,0.68592202]
[1765366023956,3.33610042,3318.3,3318.2,1.42742202]
[1765366024162,0.71600486,3318.3,3318.2,1.42742202]
[1765366024354,1.414,3318.9,3318.8,1.4229]
[1765366024556,2.92708046,3318.9,3318.8,1.4229]
[1765366024761,3.62898046,3318.9,3318.8,1.4229]
[1765366024959,2.92708046,3318.9,3318.8,1.4229]
[1765366025159,3.62898046,3318.9,3318.8,1.4229]
[1765366025462,2.92708046,3318.9,3318.8,1.4229]
[1765366025855,1.0151849,3318.9,3318.8,1.4229]
[1765366026060,1.91189556,3319.2,3319.1,1.4229]
[1765366026358,3.62881786,3319.2,3319.1,1.4229]
[1765366027964,3.62881786,3319.2,3319.1,0.6814]
[1765366029368,3.62881786,3319.2,3319.1,1.4229]
[1765366029567,3.62881786,3319.2,3319.1,0.6814]
[1765366030267,3.62881786,3319.2,3319.1,1.4229]
[1765366031363,3.62881786,3319.2,3319.1,0.6814]
[1765366031674,3.62881786,3319.2,3319.1,1.4229]
[1765366032275,3.33013719,3319.2,3319.1,1.4229]
[1765366032573,3.33013719,3319.2,3319.1,0.6814]
[1765366032768,3.62876431,3319.2,3319.1,0.6814]
[1765366033371,1.414,3319.1,3319.0,0.41]
[1765366033571,2.13034163,3319.1,3319.0,0.41]
[1765366034886,2.13034163,3319.1,3319.0,1.0914]
[1765366035481,2.13034163,3319.1,3319.0,1.797]
[1765366035884,2.13034163,3319.1,3319.0,1.0914]
[1765366036184,1.45004163,3319.1,3319.0,1.797]
[1765366036483,2.15464163,3319.1,3319.0,1.797]
[1765366037079,2.15464163,3319.1,3319.0,1.0914]
[1765366037781,2.15464163,3319.1,3319.0,1.797]
[1765366038285,2.15464163,3319.1,3319.0,1.0914]
[1765366039384,2.15464163,3319.1,3319.0,1.797]
[1765366040082,2.15464163,3319.1,3319.0,1.0914]
[1765366042888,2.15464163,3319.1,3319.0,1.797]
[1765366043186,2.15464163,3319.1,3319.0,1.0914]
[1765366043787,2.15464163,3319.1,3318.5,0.41]
[1765366043986,2.59779556,3318.8,3318.7,1.4095]
[1765366044182,1.87949556,3318.8,3318.7,1.4095]
[1765366044383,1.19979556,3318.8,3318.7,1.4095]
[1765366045584,1.19979556,3319.1,3318.5,0.41]
[1765366045792,2.59779556,3319.1,3319.0,1.8533]
[1765366046087,3.31401341,3319.1,3319.0,1.8533]
[1765366048392,3.61276318,3319.1,3319.0,1.8533]
[1765366050096,2.89446318,3319.1,3319.0,1.8533]
[1765366050293,1.69466762,3319.1,3319.0,1.8533]
[1765366050594,0.71621785,3319.1,3319.0,1.8533]
[1765366050790,2.114674,3319.4,3319.3,1.4095]
[1765366050997,2.41350994,3319.4,3319.3,1.4095]
[1765366053083,1.69520994,3319.4,3319.3,1.4095]
[1765366054697,2.41350994,3319.4,3319.3,1.4095]
[1765366054996,1.69520994,3319.4,3319.3,1.4095]
[1765366055390,0.716674,3319.4,3319.3,1.4095]
[1765366055588,0.00227161,3319.6,3319.5,1.8533]
[1765366055785,1.40027161,3319.6,3319.5,1.8533]
[1765366056093,2.41741749,3319.6,3319.5,1.8533]
[1765366059100,2.11809807,3319.6,3319.5,1.8533]
[1765366061207,2.11809807,3319.6,3319.0,0.4438]
[1765366061404,2.11809807,3319.6,3319.1,1.4095]
[1765366061405,2.59779556,3319.2,3319.1,1.4095]
[1765366062806,0.6797,3319.1,3319.0,1.8533]
[1765366064509,1.398,3319.1,3319.0,1.8533]
[1765366065310,0.6797,3319.1,3319.0,1.8533]
[1765366065811,1.87949556,3319.2,3319.1,1.4095]
[1765366066007,2.59779556,3319.2,3319.1,1.4095]
[1765366066511,1.87949556,3319.4,3319.3,1.4095]
[1765366066712,0.71686928,3319.4,3319.3,1.4095]
[1765366066908,0.68197161,3319.6,3319.5,1.8533]
[1765366067111,1.6977671,3319.6,3319.5,1.8533]
[1765366067813,2.4160671,3319.6,3319.5,1.8533]
[1765366068810,3.61586266,3319.6,3319.5,1.8533]
[1765366069202,3.61586266,3319.6,3319.5,1.177]
[1765366069410,3.61586266,3319.6,3319.5,0.4438]
[1765366069714,3.61586266,3319.6,3319.5,1.177]
[1765366071009,2.4160671,3319.6,3319.5,1.177]
[1765366071209,1.0180671,3319.6,3319.5,1.8533]
[1765366071415,1.6977671,3319.6,3319.5,1.8533]
[1765366071706,2.4160671,3319.6,3319.5,1.8533]
[1765366072215,1.6977671,3319.6,3319.5,1.8533]
[1765366073216,1.3997,3319.1,3319.0,1.861]
[1765366074012,0.7157,3319.1,3319.0,1.861]
[1765366075008,1.91549556,3319.2,3319.1,1.4172]
[1765366075214,2.59949556,3319.5,3319.4,0.6806]
[1765366075415,3.61335824,3319.5,3319.4,1.4172]
[1765366075616,1.72956268,3319.5,3319.4,1.4172]
[1765366076517,2.41356268,3319.5,3319.4,1.4172]
[1765366081217,0.7157,3319.1,3319.0,1.861]
[1765366081420,1.3997,3319.1,3319.0,1.1244]
[1765366081617,1.3997,3319.1,3318.5,2.57402377]
[1765366081618,0.7157,3318.6,3318.5,1.8272]
[1765366083308,1.19865636,3319.1,3318.5,1.8272]
[1765366083511,2.41264331,3319.0,3318.9,0.6806]
[1765366083718,0.7157,3318.6,3318.5,1.8272]
[1765366084808,1.19865636,3319.1,3318.5,1.8272]
[1765366085012,1.72879167,3319.0,3318.9,1.4172]
[1765366085213,2.41279167,3319.0,3318.9,0.6806]
[1765366087115,1.72879167,3319.0,3318.9,1.4172]
[1765366088023,2.41279167,3319.0,3318.9,1.4172]
[1765366088217,0.7157,3318.6,3318.5,1.8272]
[1765366089017,1.19865636,3319.4,3318.5,1.8272]
[1765366089225,1.01188545,3319.3,3318.5,1.8272]
[1765366089425,0.29859604,3319.2,3318.5,1.8272]
[1765366094844,1.73629604,3319.2,3319.1,0.7308]
[1765366095029,2.44958545,3319.2,3319.1,1.4335]
[1765366095331,1.01188545,3319.2,3319.1,1.4335]
[1765366095536,0.00227161,3319.6,3319.0,0.4385]
[1765366095742,0.00227161,3319.6,3319.5,1.872]
[1765366096034,1.02458931,3319.6,3319.5,1.872]
[1765366096232,1.73792209,3319.6,3319.5,1.872]
[1765366096636,2.45192209,3319.6,3319.5,1.872]
[1765366096837,0.7237,3319.1,3319.0,1.872]
[1765366097040,1.4377,3319.1,3319.0,1.872]
[1765366097341,0.7237,3319.1,3319.0,1.872]
[1765366098134,1.4377,3319.1,3319.0,1.872]
[1765366099342,0.7237,3319.1,3319.0,1.872]
[1765366100737,1.4377,3319.1,3319.0,1.872]
[1765366102241,0.7237,3319.1,3319.0,1.872]
[1765366102547,0.00227161,3319.6,3319.5,1.872]
[1765366102736,0.72597161,3319.6,3319.5,1.872]
[1765366103041,1.43873634,3319.6,3319.5,1.872]
[1765366103237,1.73743842,3319.6,3319.5,1.872]
[1765366106741,2.45143842,3319.6,3319.5,1.872]
[1765366107442,1.73743842,3319.6,3319.5,1.872]
[1765366108148,1.01373842,3319.6,3319.5,1.872]
[1765366108444,0.30097369,3319.6,3319.5,1.872]
[1765366108646,0.00227161,3319.6,3319.5,1.872]
[1765366110445,0.70927161,3319.6,3319.5,1.872]
[1765366110640,2.92013005,3319.6,3319.5,1.872]
[1765366110841,3.63289478,3319.6,3319.5,1.872]
[1765366111145,0.707,3319.1,3319.0,1.8028]
[1765366111345,1.20092797,3319.6,3319.0,1.8028]
[1765366111544,0.707,3319.1,3319.0,1.8028]
[1765366111948,1.20092797,3319.6,3319.0,1.8028]
[1765366112151,2.12955126,3319.5,3319.4,0.6874]
[1765366113152,2.12955126,3319.5,3319.4,1.3643]
[1765366113346,1.41605126,3319.5,3319.4,1.3643]
[1765366117154,0.70905126,3319.5,3319.4,1.3643]
[1765366117450,0.00227161,3319.6,3319.5,1.8044]
[1765366128153,0.70927161,3319.6,3319.5,1.8044]
[1765366128352,1.42277161,3319.6,3319.5,0.4401]
[1765366128557,1.42277161,3319.6,3319.5,1.1275]
[1765366129057,1.42277161,3319.6,3319.5,1.8044]
[1765366133451,0.70927161,3319.6,3319.5,1.8044]
[1765366134461,0.72727161,3319.6,3319.5,1.8044]
[1765366135156,0.00227161,3319.6,3319.5,1.8044]
[1765366136964,0.72727161,3319.6,3319.5,1.8044]
[1765366137357,1.46197161,3319.6,3319.5,1.8044]
[1765366137663,0.72727161,3319.6,3319.5,1.8044]
[1765366138761,1.46197161,3319.6,3319.5,1.8044]
[1765366139361,0.72727161,3319.6,3319.5,1.8044]
[1765366139958,1.46197161,3319.6,3319.5,1.8044]
[1765366140161,2.17014842,3319.6,3319.5,1.1275]
[1765366140657,2.17014842,3319.6,3319.5,1.8416]
[1765366140862,2.63413011,3319.6,3319.5,1.8416]
[1765366141964,3.36883011,3319.6,3319.5,1.8416]
[1765366143969,2.63413011,3319.6,3319.5,1.8416]
[1765366144865,1.90913011,3319.6,3319.5,1.8416]
[1765366146266,2.20827112,3319.6,3319.5,1.8416]
[1765366151776,2.93327112,3319.6,3319.5,1.8416]
[1765366153574,2.20827112,3319.6,3319.5,1.8416]
[1765366155276,1.00958943,3319.6,3319.5,1.8416]
[1765366155472,0.71044842,3319.6,3319.5,1.8416]
[1765366155672,0.00227161,3319.6,3319.5,1.8416]
[1765366164185,0.73677161,3319.6,3319.5,1.8416]
[1765366164392,2.13834842,3319.6,3319.5,1.8416]
[1765366164587,1.44494842,3319.6,3319.5,1.8416]
[1765366166193,0.71044842,3319.6,3319.5,1.8416]
[1765366166587,0.00227161,3319.6,3319.5,1.8416]
[1765366167494,0.71044842,3319.6,3319.5,1.8416]
[1765366167987,0.00227161,3319.6,3319.5,1.8416]
[1765366175202,0.00452202,3319.9,3319.8,1.3545]
[1765366176307,0.00768016,3319.9,3319.8,1.3545]
[1765366179613,0.2993625,3320.3,3319.6,1.19868169]
[1765366179614,0.2993625,3320.3,3320.2,1.3545]
[1765366180603,0.30231986,3320.3,3320.2,1.3582462]
[1765366182707,1.70521986,3320.3,3320.2,1.3582462]
[1765366182906,2.40538137,3320.3,3320.2,1.3582462]
[1765366183406,1.41261887,3320.3,3320.2,1.3582462]
[1765366185217,0.70311887,3320.3,3320.2,1.3582462]
[1765366185411,1.41261887,3320.3,3320.2,1.3582462]
[1765366185918,2.10601887,3320.3,3320.2,1.3582462]
[1765366186307,2.4050591,3320.3,3320.2,0.0037462]
[1765366186816,1.4029,3320.0,3319.9,0.00452202]
[1765366187019,3.60078343,3320.0,3319.9,0.00452202]
[1765366187715,3.60078343,3320.0,3319.9,0.00679778]
[1765366194627,1.427,3319.1,3319.0,1.1119]
[1765366194916,2.62568169,3319.1,3319.0,1.8173]
[1765366195118,2.62568169,3319.1,3319.0,0.4385]
[1765366195316,2.62568169,3319.1,3319.0,1.1119]
[1765366195516,1.92618169,3319.1,3319.0,1.8202887]
[1765366196219,2.62568169,3319.1,3319.0,1.8202887]
[1765366197225,1.19868169,3319.1,3319.0,1.8202887]
[1765366197522,2.62568169,3319.4,3319.3,1.3788]
[1765366197725,2.92428834,3319.4,3319.3,1.3788]
[1765366198018,3.62378834,3319.4,3319.3,1.3788]
[1765366198423,3.32501184,3319.4,3319.3,1.3788]
[1765366199322,3.32501184,3319.4,3319.3,0.6734]
[1765366199523,0.7275,3319.1,3319.0,1.8202887]
[1765366199723,2.62568169,3319.1,3319.0,1.8202887]
[1765366200320,1.92618169,3319.1,3319.0,1.8202887]
[1765366201219,2.62568169,3319.1,3319.0,1.1148887]
[1765366201422,2.62568169,3319.1,3319.0,0.0029887]
[1765366201614,3.32431532,3319.1,3319.0,0.0029887]
[1765366201820,1.427,3318.8,3318.7,0.00452202]
[1765366202120,2.62568169,3318.8,3318.7,0.00452202]
[1765366202725,1.427,3318.1,3317.7,2.308]
[1765366202912,1.427,3318.1,3317.5,0.4113]
[1765366203118,1.427,3318.1,3318.0,1.10787936]
[1765366203318,1.427,3318.1,3318.0,1.81327936]
[1765366207622,1.43152202,3318.4,3318.3,1.3788]
[1765366208326,0.00452202,3318.4,3318.3,1.3788]
[1765366208929,0.73202202,3318.4,3318.3,1.3788]
[1765366209131,0.00452202,3318.4,3318.3,1.3788]
[1765366209431,0.73632202,3318.4,3318.3,1.3788]
[1765366210125,0.00452202,3318.4,3318.3,1.3788]
[1765366210525,1.41272202,3318.4,3318.3,1.3788]
[1765366210726,0.7318,3318.1,3318.0,1.84327936]
[1765366210930,1.41272202,3318.4,3318.3,1.4088]
[1765366212325,0.7318,3318.1,3318.0,1.84327936]
[1765366212726,1.4082,3318.1,3318.0,1.84327936]
[1765366213732,0.7318,3318.1,3318.0,1.84327936]
[1765366217633,1.4082,3318.1,3318.0,1.15367936]
[1765366217834,1.4082,3318.1,3318.0,1.84327936]
[1765366218240,2.60797513,3318.1,3318.0,0.00367936]
[1765366218535,1.4082,3317.8,3317.7,0.00452202]
[1765366219426,0.00452202,3318.4,3318.3,1.4088]
[1765366219623,0.00774263,3318.4,3318.3,1.41138785]
[1765366220630,1.41594263,3318.4,3318.3,0.72178785]
[1765366220935,1.41594263,3318.4,3318.3,0.00258785]
[1765366221339,2.11185214,3318.4,3318.3,0.00258785]